[Event "Early-Titled-Tuesday-Blitz-August-29-2023"]
[Site "Chess.com"]
[Date "2023.08.29"]
[Round "6"]
[White "wonderfultime"]
[Black "lamomiajunior"]
[Result "1-0"]
[WhiteElo "2969"]
[BlackElo "2802"]
[TimeControl "180+1"]
[EndTime "9:06:38 PDT"]
[Termination "wonderfultime won by resignation"]

1. d4 {[%clk 0:02:55.1]} 1... Nf6 {[%clk 0:03:00.6]} 2. Nf3 {[%clk 0:02:55.2]}
2... e6 {[%clk 0:03:00.8]} 3. Bf4 {[%clk 0:02:55.8]} 3... c5 {[%clk 0:03:01.1]}
4. c3 {[%clk 0:02:56]} 4... b6 {[%clk 0:03:01.9]} 5. e3 {[%clk 0:02:55.1]} 5...
Bb7 {[%clk 0:03:02.6]} 6. Nbd2 {[%clk 0:02:55.2]} 6... cxd4 {[%clk 0:03:03.2]}
7. exd4 {[%clk 0:02:55]} 7... d6 {[%clk 0:03:03.8]} 8. h3 {[%clk 0:02:55.2]}
8... Be7 {[%clk 0:03:04.5]} 9. Bd3 {[%clk 0:02:55.6]} 9... O-O {[%clk
0:03:05.3]} 10. O-O {[%clk 0:02:55.7]} 10... a6 {[%clk 0:03:06.1]} 11. Re1
{[%clk 0:02:55.7]} 11... Nbd7 {[%clk 0:03:06.3]} 12. a4 {[%clk 0:02:52.1]} 12...
Qc7 {[%clk 0:03:06.7]} 13. Bh2 {[%clk 0:02:48.8]} 13... Rfe8 {[%clk 0:03:07]}
14. Qc2 {[%clk 0:02:41.7]} 14... Rac8 {[%clk 0:03:05.8]} 15. Ng5 {[%clk
0:02:37.7]} 15... h6 {[%clk 0:02:58.6]} 16. Ngf3 {[%clk 0:01:56.4]} 16... Nb8
{[%clk 0:02:49.8]} 17. Qd1 {[%clk 0:01:46.6]} 17... Bc6 {[%clk 0:02:45.5]} 18.
Qe2 {[%clk 0:01:35.4]} 18... Qb7 {[%clk 0:02:45.6]} 19. Nc4 {[%clk 0:01:34.6]}
19... Rcd8 {[%clk 0:02:45.1]} 20. Ne3 {[%clk 0:01:31.4]} 20... Bf8 {[%clk
0:02:32.4]} 21. Red1 {[%clk 0:01:24.9]} 21... g6 {[%clk 0:02:17.7]} 22. Nd2
{[%clk 0:01:17.2]} 22... Bg7 {[%clk 0:02:17.1]} 23. Ndc4 {[%clk 0:01:16.8]}
23... Qc7 {[%clk 0:02:11]} 24. Qc2 {[%clk 0:01:06.3]} 24... e5 {[%clk
0:01:51.5]} 25. dxe5 {[%clk 0:00:58.7]} 25... dxe5 {[%clk 0:01:52.4]} 26. Bf1
{[%clk 0:00:50.2]} 26... Ne4 {[%clk 0:01:43.2]} 27. Rxd8 {[%clk 0:00:44.6]}
27... Rxd8 {[%clk 0:01:41.3]} 28. Rd1 {[%clk 0:00:45]} 28... Re8 {[%clk
0:01:41.8]} 29. Nd5 {[%clk 0:00:39.3]} 29... Bxd5 {[%clk 0:01:37.7]} 30. Rxd5
{[%clk 0:00:40.2]} 30... Nc5 {[%clk 0:01:37.3]} 31. b4 {[%clk 0:00:34.7]} 31...
Ncd7 {[%clk 0:01:32.8]} 32. Qb3 {[%clk 0:00:31.6]} 32... Qc6 {[%clk 0:01:09.9]}
33. Nd6 {[%clk 0:00:23.6]} 33... Re6 {[%clk 0:01:09.9]} 34. b5 {[%clk
0:00:21.3]} 34... axb5 {[%clk 0:01:08.2]} 35. Bxb5 {[%clk 0:00:22.2]} 35... Qc7
{[%clk 0:01:08.3]} 36. Ne4 {[%clk 0:00:20.4]} 36... Kh7 {[%clk 0:01:01.7]} 37.
h4 {[%clk 0:00:20.6]} 37... Re7 {[%clk 0:00:55.8]} 38. h5 {[%clk 0:00:20.9]}
38... g5 {[%clk 0:00:56.3]} 39. Ng3 {[%clk 0:00:20.2]} 39... Nc5 {[%clk
0:00:50.8]} 40. Qd1 {[%clk 0:00:20.9]} 40... Qb7 {[%clk 0:00:30.3]} 41. Nf5
{[%clk 0:00:19.4]} 41... Re6 {[%clk 0:00:29]} 42. Nxg7 {[%clk 0:00:19.6]} 42...
Kxg7 {[%clk 0:00:29.9]} 43. Bxe5+ {[%clk 0:00:19.9]} 43... Kh7 {[%clk
0:00:24.8]} 44. Bd3+ {[%clk 0:00:18.3]} 1-0

[Event "Early-Titled-Tuesday-Blitz-August-29-2023"]
[Site "Chess.com"]
[Date "2023.08.29"]
[Round "6"]
[White "AndreiITrifan"]
[Black "Alexander_Moskalenko"]
[Result "1-0"]
[WhiteElo "2578"]
[BlackElo "2824"]
[TimeControl "180+1"]
[EndTime "9:06:38 PDT"]
[Termination "AndreiITrifan won on time"]

1. e4 {[%clk 0:03:00]} 1... c5 {[%clk 0:02:55.4]} 2. Nf3 {[%clk 0:02:59.9]} 2...
e6 {[%clk 0:02:55.6]} 3. c4 {[%clk 0:02:55.2]} 3... Nc6 {[%clk 0:02:55.3]} 4.
Nc3 {[%clk 0:02:55.7]} 4... g5 {[%clk 0:02:50.6]} 5. h3 {[%clk 0:02:53.7]} 5...
h6 {[%clk 0:02:50.8]} 6. d4 {[%clk 0:02:47.3]} 6... cxd4 {[%clk 0:02:50.4]} 7.
Nxd4 {[%clk 0:02:48.2]} 7... a6 {[%clk 0:02:47]} 8. Be3 {[%clk 0:02:46.2]} 8...
Nge7 {[%clk 0:02:45.9]} 9. Be2 {[%clk 0:02:44.4]} 9... Bg7 {[%clk 0:02:45.2]}
10. Qd2 {[%clk 0:02:44]} 10... O-O {[%clk 0:02:45.9]} 11. Rd1 {[%clk 0:02:40.7]}
11... Ng6 {[%clk 0:02:43.1]} 12. g3 {[%clk 0:02:31.1]} 12... Nce5 {[%clk
0:02:34.9]} 13. f4 {[%clk 0:02:02.7]} 13... gxf4 {[%clk 0:02:34]} 14. gxf4
{[%clk 0:02:03.6]} 14... Qh4+ {[%clk 0:02:34]} 15. Kf1 {[%clk 0:02:04]} 15...
Nc6 {[%clk 0:02:24.5]} 16. f5 {[%clk 0:01:57.4]} 16... Nxd4 {[%clk 0:02:11.7]}
17. Bxd4 {[%clk 0:01:58.3]} 17... Ne5 {[%clk 0:02:06]} 18. Qe3 {[%clk
0:01:37.1]} 18... b5 {[%clk 0:02:04.9]} 19. Rg1 {[%clk 0:01:33.6]} 19... f6
{[%clk 0:01:53.2]} 20. cxb5 {[%clk 0:01:26]} 20... axb5 {[%clk 0:01:50.1]} 21.
Bxb5 {[%clk 0:01:26.9]} 21... d5 {[%clk 0:01:44]} 22. Qg3 {[%clk 0:01:07.9]}
22... Qxg3 {[%clk 0:01:38.3]} 23. Rxg3 {[%clk 0:01:08.8]} 23... dxe4 {[%clk
0:01:34.5]} 24. Nxe4 {[%clk 0:01:04.2]} 24... exf5 {[%clk 0:01:34.8]} 25. Nxf6+
{[%clk 0:00:59.6]} 25... Rxf6 {[%clk 0:01:16.3]} 26. Bxe5 {[%clk 0:00:46.7]}
26... f4 {[%clk 0:01:16.8]} 27. Rxg7+ {[%clk 0:00:41.2]} 27... Kxg7 {[%clk
0:01:15.4]} 28. Rd6 {[%clk 0:00:38.8]} 28... Bxh3+ {[%clk 0:01:15.4]} 29. Kf2
{[%clk 0:00:38.5]} 29... Rf8 {[%clk 0:01:16.3]} 30. a4 {[%clk 0:00:27.7]} 30...
Kg6 {[%clk 0:01:11.8]} 31. Rxf6+ {[%clk 0:00:22.8]} 31... Rxf6 {[%clk
0:01:12.7]} 32. Bxf6 {[%clk 0:00:23.7]} 32... Kxf6 {[%clk 0:01:12.9]} 33. a5
{[%clk 0:00:24.1]} 33... Ke5 {[%clk 0:01:11.8]} 34. a6 {[%clk 0:00:22]} 34...
Bc8 {[%clk 0:01:12.2]} 35. a7 {[%clk 0:00:19.7]} 35... Bb7 {[%clk 0:01:12.3]}
36. Be2 {[%clk 0:00:20.2]} 36... Kd6 {[%clk 0:01:08.3]} 37. Bf3 {[%clk
0:00:20.2]} 37... Kc7 {[%clk 0:01:06.3]} 38. a8=Q {[%clk 0:00:19.1]} 38... Bxa8
{[%clk 0:01:06.7]} 39. Bxa8 {[%clk 0:00:20]} 39... Kb6 {[%clk 0:01:07.6]} 40.
Be4 {[%clk 0:00:18.3]} 40... Kc5 {[%clk 0:01:08.5]} 41. Kf3 {[%clk 0:00:18.1]}
41... Kc4 {[%clk 0:01:08]} 42. Bc2 {[%clk 0:00:18.5]} 42... Kd4 {[%clk
0:01:05.4]} 43. Kxf4 {[%clk 0:00:19.4]} 43... Kc4 {[%clk 0:01:04.6]} 44. Kg4
{[%clk 0:00:19.3]} 1-0

[Event "Early-Titled-Tuesday-Blitz-August-29-2023"]
[Site "Chess.com"]
[Date "2023.08.29"]
[Round "6"]
[White "AlexNovitz"]
[Black "jasrom"]
[Result "1-0"]
[WhiteElo "2242"]
[BlackElo "2398"]
[TimeControl "180+1"]
[EndTime "9:06:39 PDT"]
[Termination "AlexNovitz won on time"]

1. e4 {[%clk 0:03:00.9]} 1... e6 {[%clk 0:02:59.6]} 2. d4 {[%clk 0:03:00.4]}
2... d5 {[%clk 0:02:59.8]} 3. e5 {[%clk 0:03:00.9]} 3... c5 {[%clk 0:02:59.2]}
4. c3 {[%clk 0:03:01.4]} 4... Nc6 {[%clk 0:02:59.4]} 5. Nf3 {[%clk 0:03:01.9]}
5... Bd7 {[%clk 0:02:59.4]} 6. a3 {[%clk 0:02:51.9]} 6... Nge7 {[%clk
0:02:57.8]} 7. b4 {[%clk 0:02:50.5]} 7... cxd4 {[%clk 0:02:57.4]} 8. cxd4 {[%clk
0:02:51.4]} 8... Nf5 {[%clk 0:02:57.6]} 9. Bb2 {[%clk 0:02:50.5]} 9... h5 {[%clk
0:02:56.8]} 10. Nc3 {[%clk 0:02:39.6]} 10... Be7 {[%clk 0:02:48.3]} 11. Rc1
{[%clk 0:02:34.4]} 11... Rc8 {[%clk 0:02:43.5]} 12. Na4 {[%clk 0:02:33.9]} 12...
b6 {[%clk 0:02:42.7]} 13. Ba6 {[%clk 0:02:23.6]} 13... Rc7 {[%clk 0:02:41.9]}
14. O-O {[%clk 0:02:21]} 14... g5 {[%clk 0:02:40.4]} 15. Bd3 {[%clk 0:01:50.2]}
15... g4 {[%clk 0:02:33.9]} 16. Bxf5 {[%clk 0:01:50.2]} 16... gxf3 {[%clk
0:02:05.5]} 17. Bh3 {[%clk 0:01:49.8]} 17... fxg2 {[%clk 0:02:03.3]} 18. Bxg2
{[%clk 0:01:50.1]} 18... Rg8 {[%clk 0:01:54.9]} 19. h3 {[%clk 0:01:44.7]} 19...
Bg5 {[%clk 0:00:50.6]} 20. Rc3 {[%clk 0:01:41.4]} 20... Bf4 {[%clk 0:00:46.2]}
21. Rf3 {[%clk 0:01:24.9]} 21... Qg5 {[%clk 0:00:43.2]} 22. Rg3 {[%clk
0:01:19.7]} 22... Bxg3 {[%clk 0:00:42.4]} 23. fxg3 {[%clk 0:01:20.6]} 23... Qxg3
{[%clk 0:00:41.8]} 24. Rf2 {[%clk 0:01:16.5]} 24... Qxh3 {[%clk 0:00:24.6]} 25.
Nc3 {[%clk 0:01:11.9]} 25... Qg3 {[%clk 0:00:23.9]} 26. Nb5 {[%clk 0:01:08.1]}
26... Kd8 {[%clk 0:00:16.1]} 27. Nxc7 {[%clk 0:01:03.3]} 27... Kxc7 {[%clk
0:00:17]} 28. b5 {[%clk 0:01:03.8]} 28... Na5 {[%clk 0:00:16.7]} 29. Qxh5 {[%clk
0:00:49.4]} 29... Nc4 {[%clk 0:00:14]} 30. Bc1 {[%clk 0:00:44.8]} 30... Be8
{[%clk 0:00:07.3]} 31. Bf4 {[%clk 0:00:29.4]} 31... Qg4 {[%clk 0:00:05.4]} 32.
Qh6 {[%clk 0:00:14.5]} 32... Qg6 {[%clk 0:00:04]} 33. Qh4 {[%clk 0:00:12.9]}
33... Qb1+ {[%clk 0:00:03.7]} 34. Kh2 {[%clk 0:00:13]} 34... Rg7 {[%clk
0:00:04.1]} 35. Qe7+ {[%clk 0:00:11]} 35... Kc8 {[%clk 0:00:04.4]} 36. Qxe8+
{[%clk 0:00:11.3]} 36... Kc7 {[%clk 0:00:04.6]} 37. Qe7+ {[%clk 0:00:11.6]}
37... Kc8 {[%clk 0:00:04.4]} 38. Qf8+ {[%clk 0:00:12]} 38... Kc7 {[%clk
0:00:04]} 39. Qxg7 {[%clk 0:00:12.7]} 1-0

[Event "Early-Titled-Tuesday-Blitz-August-29-2023"]
[Site "Chess.com"]
[Date "2023.08.29"]
[Round "6"]
[White "RobertoJBM"]
[Black "jaskol95"]
[Result "1-0"]
[WhiteElo "2820"]
[BlackElo "2562"]
[TimeControl "180+1"]
[EndTime "9:06:41 PDT"]
[Termination "RobertoJBM won by checkmate"]

1. e4 {[%clk 0:03:00.9]} 1... d5 {[%clk 0:03:00.3]} 2. exd5 {[%clk 0:03:00.6]}
2... Nf6 {[%clk 0:03:01]} 3. Bb5+ {[%clk 0:02:58.4]} 3... Nbd7 {[%clk
0:02:59.4]} 4. Be2 {[%clk 0:02:57.3]} 4... Nxd5 {[%clk 0:02:59]} 5. d4 {[%clk
0:02:57.2]} 5... c6 {[%clk 0:02:58]} 6. Nf3 {[%clk 0:02:56.5]} 6... N7f6 {[%clk
0:02:55.9]} 7. O-O {[%clk 0:02:56.5]} 7... Bg4 {[%clk 0:02:55.7]} 8. c4 {[%clk
0:02:53.7]} 8... Nb6 {[%clk 0:02:55.8]} 9. b3 {[%clk 0:02:53.1]} 9... e6 {[%clk
0:02:56.1]} 10. Bb2 {[%clk 0:02:51.9]} 10... Be7 {[%clk 0:02:56.4]} 11. Nbd2
{[%clk 0:02:48.6]} 11... O-O {[%clk 0:02:56.1]} 12. Qc2 {[%clk 0:02:47.4]} 12...
a5 {[%clk 0:02:53.4]} 13. a4 {[%clk 0:02:46.3]} 13... Bb4 {[%clk 0:02:51.3]} 14.
Rad1 {[%clk 0:02:44.5]} 14... Qe7 {[%clk 0:02:48]} 15. Ne4 {[%clk 0:02:36.2]}
15... Bf5 {[%clk 0:02:38.9]} 16. Bd3 {[%clk 0:02:35.3]} 16... Nxe4 {[%clk
0:02:38.9]} 17. Bxe4 {[%clk 0:02:36.2]} 17... Bxe4 {[%clk 0:02:39.5]} 18. Qxe4
{[%clk 0:02:36.4]} 18... Rad8 {[%clk 0:02:35.6]} 19. Rd3 {[%clk 0:02:35]} 19...
Qf6 {[%clk 0:02:23.3]} 20. Rfd1 {[%clk 0:02:32.8]} 20... Qg6 {[%clk 0:02:22.2]}
21. Qe3 {[%clk 0:02:29.4]} 21... Nc8 {[%clk 0:01:58.9]} 22. Ne5 {[%clk
0:02:21.4]} 22... Qf5 {[%clk 0:01:53]} 23. g4 {[%clk 0:01:56]} 23... Qf6 {[%clk
0:01:51.2]} 24. d5 {[%clk 0:01:51.1]} 24... cxd5 {[%clk 0:01:38.1]} 25. cxd5
{[%clk 0:01:50]} 25... exd5 {[%clk 0:01:38.2]} 26. Rxd5 {[%clk 0:01:42.6]} 26...
Rxd5 {[%clk 0:01:38.5]} 27. Rxd5 {[%clk 0:01:43.5]} 27... Ne7 {[%clk 0:01:06.8]}
28. Rb5 {[%clk 0:01:27.7]} 28... Qe6 {[%clk 0:01:04.6]} 29. h3 {[%clk
0:01:20.5]} 29... Nd5 {[%clk 0:00:53.6]} 30. Qf3 {[%clk 0:01:17.3]} 30... Nf6
{[%clk 0:00:25.6]} 31. Kg2 {[%clk 0:01:10]} 31... Bd6 {[%clk 0:00:24.8]} 32. Nc4
{[%clk 0:01:01.2]} 32... Be7 {[%clk 0:00:17.7]} 33. Re5 {[%clk 0:00:20.9]} 33...
Qd7 {[%clk 0:00:16.4]} 34. g5 {[%clk 0:00:20.9]} 34... Ne8 {[%clk 0:00:12.6]}
35. Qd5 {[%clk 0:00:20.9]} 35... Nd6 {[%clk 0:00:08.6]} 36. Rxe7 {[%clk
0:00:17.5]} 36... Qxe7 {[%clk 0:00:09.1]} 37. Nxd6 {[%clk 0:00:09.7]} 37... h6
{[%clk 0:00:08.2]} 38. gxh6 {[%clk 0:00:08.9]} 38... gxh6 {[%clk 0:00:08.8]} 39.
Ne4 {[%clk 0:00:08.2]} 39... Kh7 {[%clk 0:00:06.9]} 40. Nf6+ {[%clk 0:00:08.1]}
40... Kg6 {[%clk 0:00:07.3]} 41. Qd3+ {[%clk 0:00:07.2]} 41... Kg5 {[%clk
0:00:07.3]} 42. h4+ {[%clk 0:00:06.9]} 42... Kf4 {[%clk 0:00:03.1]} 43. Qg3+
{[%clk 0:00:07.2]} 43... Kf5 {[%clk 0:00:03.6]} 44. Qg4# {[%clk 0:00:07.5]} 1-0

[Event "Early-Titled-Tuesday-Blitz-August-29-2023"]
[Site "Chess.com"]
[Date "2023.08.29"]
[Round "6"]
[White "IPAchess"]
[Black "blitzo_vich"]
[Result "1-0"]
[WhiteElo "2371"]
[BlackElo "2593"]
[TimeControl "180+1"]
[EndTime "9:06:42 PDT"]
[Termination "IPAchess won on time"]

1. d4 {[%clk 0:02:54.7]} 1... Nf6 {[%clk 0:02:59.3]} 2. c4 {[%clk 0:02:54.6]}
2... Nc6 {[%clk 0:02:58.6]} 3. Nf3 {[%clk 0:02:54.2]} 3... e6 {[%clk 0:02:58.1]}
4. a3 {[%clk 0:02:54]} 4... d6 {[%clk 0:02:57.2]} 5. Nc3 {[%clk 0:02:54.6]} 5...
g6 {[%clk 0:02:56.6]} 6. e4 {[%clk 0:02:55.3]} 6... Bg7 {[%clk 0:02:56.5]} 7.
Be2 {[%clk 0:02:56.1]} 7... O-O {[%clk 0:02:56.5]} 8. O-O {[%clk 0:02:56.9]}
8... Re8 {[%clk 0:02:56.8]} 9. h3 {[%clk 0:02:56.4]} 9... e5 {[%clk 0:02:53.6]}
10. d5 {[%clk 0:02:56]} 10... Nd4 {[%clk 0:02:52.8]} 11. Be3 {[%clk 0:02:54.5]}
11... Nxe2+ {[%clk 0:02:51.2]} 12. Qxe2 {[%clk 0:02:53.5]} 12... a5 {[%clk
0:02:50.6]} 13. b4 {[%clk 0:02:51.9]} 13... Nh5 {[%clk 0:02:40.9]} 14. Rac1
{[%clk 0:02:50.2]} 14... f5 {[%clk 0:02:28.2]} 15. Bg5 {[%clk 0:02:43.4]} 15...
Qd7 {[%clk 0:02:02.7]} 16. c5 {[%clk 0:02:43.5]} 16... dxc5 {[%clk 0:01:45.6]}
17. bxc5 {[%clk 0:02:42.8]} 17... f4 {[%clk 0:01:43.8]} 18. c6 {[%clk
0:02:35.7]} 18... Qf7 {[%clk 0:01:37]} 19. cxb7 {[%clk 0:02:13.3]} 19... Bxb7
{[%clk 0:01:35.8]} 20. Nb5 {[%clk 0:01:49.2]} 20... Ba6 {[%clk 0:01:35]} 21. a4
{[%clk 0:01:49.8]} 21... h6 {[%clk 0:01:30.7]} 22. Bh4 {[%clk 0:01:49.8]} 22...
g5 {[%clk 0:01:25.7]} 23. Bxg5 {[%clk 0:01:47.2]} 23... hxg5 {[%clk 0:01:24.2]}
24. Nxg5 {[%clk 0:01:47.8]} 24... Qg6 {[%clk 0:01:24.1]} 25. h4 {[%clk
0:01:43.5]} 25... Rac8 {[%clk 0:01:04]} 26. Rc6 {[%clk 0:01:43.3]} 26... Bxb5
{[%clk 0:00:59.9]} 27. Qxb5 {[%clk 0:01:36.7]} 27... Nf6 {[%clk 0:00:58]} 28.
Rfc1 {[%clk 0:01:34.6]} 28... Qh5 {[%clk 0:00:46.6]} 29. d6 {[%clk 0:01:32.4]}
29... Qxh4 {[%clk 0:00:30.6]} 30. Qb3+ {[%clk 0:01:29.6]} 30... Kh8 {[%clk
0:00:27.9]} 31. Nf3 {[%clk 0:01:20.8]} 31... Qh7 {[%clk 0:00:18.7]} 32. Qf7
{[%clk 0:01:15.7]} 32... Rf8 {[%clk 0:00:15.7]} 33. Qe6 {[%clk 0:01:14.7]} 33...
Rce8 {[%clk 0:00:14.9]} 34. Qb3 {[%clk 0:01:06.9]} 34... cxd6 {[%clk 0:00:14.9]}
35. Rxd6 {[%clk 0:01:04.1]} 35... Nxe4 {[%clk 0:00:14.9]} 36. Rd7 {[%clk
0:01:02.3]} 36... Qg6 {[%clk 0:00:13.5]} 37. Rcc7 {[%clk 0:00:50.2]} 37... Rg8
{[%clk 0:00:12.7]} 38. Nh4 {[%clk 0:00:46.1]} 38... Qe6 {[%clk 0:00:09.1]} 39.
Qd3 {[%clk 0:00:41]} 39... Rd8 {[%clk 0:00:04]} 40. Qxe4 {[%clk 0:00:29.3]}
40... Rxd7 {[%clk 0:00:03.5]} 41. Ng6+ {[%clk 0:00:30]} 41... Qxg6 {[%clk
0:00:02.8]} 42. Qxg6 {[%clk 0:00:29]} 42... Rxc7 {[%clk 0:00:03]} 43. Qh5+
{[%clk 0:00:29.4]} 43... Bh6 {[%clk 0:00:02.9]} 44. Qxh6+ {[%clk 0:00:29.6]}
44... Rh7 {[%clk 0:00:02.9]} 45. Qf6+ {[%clk 0:00:30.2]} 45... Rhg7 {[%clk
0:00:01.7]} 46. Qxe5 {[%clk 0:00:29.3]} 46... Rf8 {[%clk 0:00:01]} 47. Qxa5
{[%clk 0:00:27.1]} 1-0

[Event "Early-Titled-Tuesday-Blitz-August-29-2023"]
[Site "Chess.com"]
[Date "2023.08.29"]
[Round "6"]
[White "WhiteKnight2612"]
[Black "FairChess_on_YouTube"]
[Result "1/2-1/2"]
[WhiteElo "2834"]
[BlackElo "3048"]
[TimeControl "180+1"]
[EndTime "9:06:43 PDT"]
[Termination "Game drawn by repetition"]

1. Nf3 {[%clk 0:03:00.9]} 1... b5 {[%clk 0:02:59.3]} 2. g3 {[%clk 0:02:59.9]}
2... Bb7 {[%clk 0:02:59.2]} 3. Bg2 {[%clk 0:03:00.6]} 3... Nf6 {[%clk
0:02:59.7]} 4. O-O {[%clk 0:03:01.2]} 4... e6 {[%clk 0:03:00.1]} 5. d3 {[%clk
0:03:01.6]} 5... Be7 {[%clk 0:02:53.9]} 6. c4 {[%clk 0:03:02]} 6... a6 {[%clk
0:02:48.1]} 7. Nc3 {[%clk 0:02:59.5]} 7... b4 {[%clk 0:02:48.2]} 8. Na4 {[%clk
0:03:00]} 8... O-O {[%clk 0:02:46.3]} 9. a3 {[%clk 0:03:00.1]} 9... a5 {[%clk
0:02:44.8]} 10. b3 {[%clk 0:02:52.2]} 10... c5 {[%clk 0:02:35.1]} 11. Bb2 {[%clk
0:02:46.6]} 11... d6 {[%clk 0:02:35]} 12. d4 {[%clk 0:02:43.4]} 12... Nbd7
{[%clk 0:02:32.7]} 13. Re1 {[%clk 0:02:27.1]} 13... Qc7 {[%clk 0:02:31.9]} 14.
Nd2 {[%clk 0:02:25.3]} 14... Bxg2 {[%clk 0:02:25.3]} 15. Kxg2 {[%clk 0:02:26.2]}
15... bxa3 {[%clk 0:02:12.7]} 16. Rxa3 {[%clk 0:02:23.8]} 16... cxd4 {[%clk
0:02:11.7]} 17. Bxd4 {[%clk 0:02:23.7]} 17... d5 {[%clk 0:02:04]} 18. Ra2 {[%clk
0:02:23.9]} 18... e5 {[%clk 0:02:03.9]} 19. Bb2 {[%clk 0:02:24.4]} 19... d4
{[%clk 0:02:02.2]} 20. Kg1 {[%clk 0:02:24.4]} 20... Rab8 {[%clk 0:01:42.4]} 21.
e3 {[%clk 0:02:23.9]} 21... dxe3 {[%clk 0:01:39.8]} 22. Rxe3 {[%clk 0:02:23.1]}
22... Rfd8 {[%clk 0:01:37.5]} 23. Qe2 {[%clk 0:02:20.5]} 23... Bb4 {[%clk
0:01:35.6]} 24. Nf3 {[%clk 0:02:19.3]} 24... Ng4 {[%clk 0:01:31.8]} 25. Rd3
{[%clk 0:02:07]} 25... Re8 {[%clk 0:01:17.7]} 26. Nh4 {[%clk 0:01:54.6]} 26...
Ndf6 {[%clk 0:01:04.3]} 27. Nf5 {[%clk 0:01:50.4]} 27... e4 {[%clk 0:00:43.5]}
28. Rd1 {[%clk 0:01:46.1]} 28... Ne5 {[%clk 0:00:36.9]} 29. Bxe5 {[%clk
0:01:28.1]} 29... Qxe5 {[%clk 0:00:36.6]} 30. Nd4 {[%clk 0:01:27.2]} 30... Rbc8
{[%clk 0:00:28.8]} 31. Rc2 {[%clk 0:01:24.1]} 31... h5 {[%clk 0:00:27.1]} 32.
Qe3 {[%clk 0:00:48]} 32... Ng4 {[%clk 0:00:24.5]} 33. Qf4 {[%clk 0:00:47.7]}
33... Qxf4 {[%clk 0:00:20.9]} 34. gxf4 {[%clk 0:00:47.8]} 34... e3 {[%clk
0:00:17.1]} 35. f3 {[%clk 0:00:47.7]} 35... Nf2 {[%clk 0:00:17.1]} 36. Rdc1
{[%clk 0:00:36.9]} 36... Nh3+ {[%clk 0:00:17]} 37. Kf1 {[%clk 0:00:37.4]} 37...
Nxf4 {[%clk 0:00:17]} 38. Ne2 {[%clk 0:00:35.9]} 38... Nd3 {[%clk 0:00:17.2]}
39. Rd1 {[%clk 0:00:35.2]} 39... Ne5 {[%clk 0:00:17.6]} 40. c5 {[%clk
0:00:33.3]} 40... Nxf3 {[%clk 0:00:17.1]} 41. c6 {[%clk 0:00:28.9]} 41... Nxh2+
{[%clk 0:00:15.6]} 42. Kg2 {[%clk 0:00:28.2]} 42... Ng4 {[%clk 0:00:16.2]} 43.
Nb6 {[%clk 0:00:27.3]} 43... Rb8 {[%clk 0:00:13.4]} 44. Nd7 {[%clk 0:00:23.1]}
44... Rbc8 {[%clk 0:00:12.2]} 45. Nb6 {[%clk 0:00:23.2]} 45... Rb8 {[%clk
0:00:09.3]} 46. Nd7 {[%clk 0:00:23.4]} 46... Rbc8 {[%clk 0:00:04.8]} 47. Nb6
{[%clk 0:00:23.8]} 1/2-1/2

[Event "Early-Titled-Tuesday-Blitz-August-29-2023"]
[Site "Chess.com"]
[Date "2023.08.29"]
[Round "6"]
[White "LionTheLeon_06"]
[Black "joppie2"]
[Result "0-1"]
[WhiteElo "2776"]
[BlackElo "2941"]
[TimeControl "180+1"]
[EndTime "9:06:43 PDT"]
[Termination "joppie2 won by resignation"]

1. e4 {[%clk 0:03:00.9]} 1... c5 {[%clk 0:02:58.8]} 2. Nf3 {[%clk 0:03:01.2]}
2... d6 {[%clk 0:02:59.5]} 3. Bb5+ {[%clk 0:02:56.8]} 3... Bd7 {[%clk
0:02:59.4]} 4. Bxd7+ {[%clk 0:02:55.2]} 4... Nxd7 {[%clk 0:03:00]} 5. c4 {[%clk
0:02:56.1]} 5... e6 {[%clk 0:02:58.3]} 6. Nc3 {[%clk 0:02:56.4]} 6... Be7 {[%clk
0:02:59]} 7. O-O {[%clk 0:02:56.6]} 7... Ngf6 {[%clk 0:02:59.6]} 8. d4 {[%clk
0:02:51.3]} 8... cxd4 {[%clk 0:03:00.2]} 9. Nxd4 {[%clk 0:02:52.2]} 9... a6
{[%clk 0:03:00.1]} 10. b3 {[%clk 0:02:52.1]} 10... O-O {[%clk 0:02:59.3]} 11.
Be3 {[%clk 0:02:51.7]} 11... Qa5 {[%clk 0:03:00]} 12. Rc1 {[%clk 0:02:48.6]}
12... Rac8 {[%clk 0:03:00.2]} 13. Qd2 {[%clk 0:02:46.9]} 13... Qh5 {[%clk
0:02:56]} 14. h3 {[%clk 0:02:41.6]} 14... Rfd8 {[%clk 0:02:56.6]} 15. Rfe1
{[%clk 0:02:41.2]} 15... Bf8 {[%clk 0:02:55.2]} 16. f4 {[%clk 0:02:31.8]} 16...
Qa5 {[%clk 0:02:48.6]} 17. Bf2 {[%clk 0:02:21.8]} 17... d5 {[%clk 0:02:46.5]}
18. e5 {[%clk 0:02:16]} 18... Ne8 {[%clk 0:02:40.5]} 19. cxd5 {[%clk 0:02:10.2]}
19... Bb4 {[%clk 0:02:41.1]} 20. Nde2 {[%clk 0:02:07]} 20... exd5 {[%clk
0:02:37.7]} 21. Red1 {[%clk 0:01:58.1]} 21... Nc7 {[%clk 0:02:30]} 22. Qd3
{[%clk 0:01:56]} 22... Nc5 {[%clk 0:02:28.5]} 23. Qf3 {[%clk 0:01:54.7]} 23...
N5e6 {[%clk 0:02:10.5]} 24. f5 {[%clk 0:01:52.2]} 24... Nf8 {[%clk 0:02:09.3]}
25. Bd4 {[%clk 0:01:42.8]} 25... Bc5 {[%clk 0:02:07.1]} 26. Kh1 {[%clk
0:01:24.6]} 26... Nb5 {[%clk 0:02:07.2]} 27. Nxb5 {[%clk 0:01:23.3]} 27... Qxb5
{[%clk 0:02:07.2]} 28. Bxc5 {[%clk 0:01:16.2]} 28... Rxc5 {[%clk 0:02:08.1]} 29.
Nd4 {[%clk 0:01:16.9]} 29... Qb4 {[%clk 0:02:06.3]} 30. Rxc5 {[%clk 0:01:15.3]}
30... Qxc5 {[%clk 0:02:07.2]} 31. f6 {[%clk 0:00:39.2]} 31... g6 {[%clk
0:02:01]} 32. Qg3 {[%clk 0:00:36.6]} 32... h6 {[%clk 0:01:45.3]} 33. Nf5 {[%clk
0:00:35]} 33... Ne6 {[%clk 0:00:56.2]} 34. Nxh6+ {[%clk 0:00:35.2]} 34... Kf8
{[%clk 0:00:56.9]} 35. Qh4 {[%clk 0:00:29.8]} 35... Ke8 {[%clk 0:00:41.8]} 36.
Ng8 {[%clk 0:00:16.8]} 36... Kd7 {[%clk 0:00:38.8]} 37. Ne7 {[%clk 0:00:16.7]}
37... d4 {[%clk 0:00:38.5]} 38. Qh7 {[%clk 0:00:13.5]} 38... Qc2 {[%clk
0:00:34.6]} 39. Rg1 {[%clk 0:00:11.1]} 39... Rf8 {[%clk 0:00:35.1]} 40. Qh6
{[%clk 0:00:05.9]} 40... Qe4 {[%clk 0:00:31.6]} 41. Qd2 {[%clk 0:00:03.2]} 41...
Rh8 {[%clk 0:00:31.3]} 42. Kh2 {[%clk 0:00:02.6]} 42... Qxe5+ {[%clk 0:00:29.7]}
43. g3 {[%clk 0:00:03.2]} 43... Ng5 {[%clk 0:00:26.4]} 44. Qg2 {[%clk
0:00:01.4]} 44... Rxh3+ {[%clk 0:00:25.5]} 45. Qxh3+ {[%clk 0:00:02]} 45... Nxh3
{[%clk 0:00:26.4]} 46. Kxh3 {[%clk 0:00:02.9]} 46... Qxf6 {[%clk 0:00:26.6]} 47.
Re1 {[%clk 0:00:01.4]} 47... Qxe7 {[%clk 0:00:26.4]} 0-1